bitfinex-derivatives/quotes_ETHF0:USTF0_20260121
["timestamp","ask_amount","ask_price","bid_price","bid_amount"]
[1769017387321,3.49332208,2905.4,2903.2,3.64489571]
[1769017387520,3.49332208,2905.4,2903.2,2.64489571]
[1769017387827,3.66558208,2905.1,2902.6,0.00267963]
[1769017388226,3.49332208,2905.1,2902.6,0.00267963]
[1769017388424,3.49332208,2905.8,2903.4,0.17235]
[1769017388625,3.49332208,2905.8,2902.6,1.42014543]
[1769017388827,3.49332208,2905.8,2903.4,0.17235]
[1769017389328,0.00248329,2905.9,2903.3,1.4174658]
[1769017389523,3.49580537,2905.9,2904.1,0.17231]
[1769017389830,0.00248329,2905.9,2904.2,3.64489571]
[1769017390329,3.49332208,2905.7,2903.4,3.64489571]
[1769017390625,3.49332208,2905.5,2902.8,3.64489571]
[1769017390829,3.49332208,2905.5,2902.9,2.273]
[1769017391024,3.49332208,2905.5,2902.8,3.64489571]
[1769017391229,3.49332208,2905.2,2903.1,3.64489571]
[1769017391430,3.49332208,2905.5,2903.4,0.17235]
[1769017391629,3.66555208,2905.5,2903.3,2.279]
[1769017391828,0.17469329,2905.9,2903.5,3.64489571]
[1769017392031,0.17469329,2905.9,2902.8,3.448]
[1769017392032,3.79647462,2906.1,2904.2,3.81719571]
[1769017392225,3.96867462,2906.1,2903.6,3.64489571]
[1769017392424,3.79647462,2906.1,2903.8,3.64489571]
[1769017392826,3.79647462,2906.1,2904.4,0.17229]
[1769017393122,0.00876488,2906.6,2905.5,0.17223]
[1769017393324,0.00876488,2906.6,2905.2,1.915]
[1769017393629,0.00876488,2906.6,2905.3,2.284]
[1769017393931,0.00876488,2906.6,2905.2,2.284]
[1769017394130,0.01197767,2906.6,2905.3,2.284]
[1769017394332,3.50529975,2906.6,2905.2,0.00426736]
[1769017394533,0.01197767,2906.6,2905.2,0.00426736]
[1769017394729,0.01197767,2906.6,2905.5,0.17223]
[1769017394930,0.01197767,2906.6,2905.6,0.17222]
[1769017395130,0.01197767,2906.6,2905.7,0.17221]
[1769017395333,0.01197767,2906.6,2905.8,2.45521]
[1769017395630,0.00979981,2906.7,2905.8,0.17221]
[1769017395828,0.00979981,2906.7,2905.9,2.283]
[1769017396228,3.6306756,2907.9,2905.9,2.4552]
[1769017396429,3.6306756,2907.9,2905.9,0.1722]
[1769017396643,3.4585856,2907.6,2905.3,1.40993665]
[1769017396833,3.4585856,2907.6,2905.6,2.284]
[1769017397331,3.4585856,2907.4,2905.2,0.17650736]
[1769017397530,3.4585856,2906.9,2905.2,0.17650736]
[1769017397934,3.4585856,2906.9,2905.2,0.00426736]
[1769017398127,3.4585856,2906.6,2904.6,0.17228]
[1769017398326,3.4585856,2906.0,2904.1,0.17231]
[1769017398530,3.4585856,2906.0,2904.3,0.17229]
[1769017398728,3.4585856,2906.0,2904.4,0.17229]
[1769017399128,3.4585856,2906.0,2904.4,0.17617214]
[1769017399738,3.4585856,2906.0,2904.4,0.00388214]
[1769017400035,3.6307956,2905.8,2904.4,0.00388214]
[1769017400236,3.4585856,2905.6,2903.5,1.914]
[1769017400540,3.4585856,2905.6,2902.7,3.5072343]
[1769017400541,3.4585856,2905.0,2902.7,3.5072343]
[1769017400741,0.06417256,2905.8,2902.3,1.40993665]
[1769017400742,3.4585856,2904.6,2902.3,1.40993665]
[1769017400939,3.4585856,2904.6,2902.6,0.1724]
[1769017401137,3.4585856,2904.4,2902.6,0.00413845]
[1769017401737,3.4585856,2903.9,2901.7,0.17245]
[1769017402033,3.4585856,2903.5,2901.2,2.28]
[1769017402235,3.4585856,2903.5,2901.4,0.17247]
[1769017402433,3.6309356,2903.5,2901.1,5.7862343]
[1769017402637,3.6309356,2903.5,2901.2,3.5072343]
[1769017402939,3.63517274,2903.5,2901.2,0.00362685]
[1769017403430,3.46282274,2903.5,2901.6,0.17245]
[1769017403631,3.46282274,2903.5,2901.9,0.17244]
[1769017403833,3.46282274,2903.5,2901.3,3.5072343]
[1769017404034,3.46282274,2903.5,2901.2,0.00362685]
[1769017404235,3.46282274,2903.5,2901.3,0.17247]
[1769017404938,3.4585856,2903.1,2901.2,0.00362685]
[1769017406240,3.4585856,2902.5,2899.8,1.915]
[1769017406438,3.6309956,2902.5,2899.7,0.17257]
[1769017406639,3.4585856,2902.1,2898.8,0.17262]
[1769017406840,3.4585856,2901.8,2898.9,5.4222343]
[1769017407041,0.90570269,2902.4,2898.9,5.4222343]
[1769017407042,3.4585856,2901.6,2899.0,0.17261]
[1769017407343,3.4585856,2901.6,2899.0,5.59831482]
[1769017407731,3.6310456,2901.6,2899.0,0.17608052]
[1769017407937,3.6310656,2901.3,2899.0,0.00347052]
[1769017408146,3.63548125,2901.3,2899.0,0.00347052]
[1769017408343,3.46300125,2901.3,2899.0,3.51070482]
[1769017408638,3.46300125,2901.3,2899.1,0.17261]
[1769017409146,3.46300125,2901.3,2899.0,0.00347052]
[1769017409344,3.4585856,2901.1,2899.0,0.00347052]
[1769017409943,3.6310756,2901.1,2899.0,0.00347052]
[1769017411448,3.4585856,2901.1,2899.0,3.51070482]
[1769017411845,0.00441565,2901.3,2899.0,3.51070482]
[1769017412041,0.00441565,2901.3,2899.2,0.1726]
[1769017412241,0.00441565,2901.3,2899.0,3.51070482]
[1769017412242,3.46300125,2901.3,2899.0,3.51070482]
[1769017413441,3.46300125,2901.3,2899.0,0.00347052]
[1769017414148,0.00441565,2901.3,2899.5,3.5072343]
[1769017414449,0.00441565,2901.3,2899.5,3.6798143]
[1769017415342,3.46300125,2901.3,2899.0,1.91947052]
[1769017415643,0.00441565,2901.3,2899.1,3.6798443]
[1769017415949,0.00441565,2901.3,2899.2,2.279]
[1769017416147,3.46300125,2901.3,2899.1,0.17261]
[1769017417142,3.63548125,2901.3,2899.0,0.00347052]
[1769017418251,3.4585856,2901.1,2899.0,0.00347052]
[1769017419245,3.4585856,2900.9,2899.0,0.00347052]
[1769017419752,3.6310856,2900.9,2899.0,0.00347052]
[1769017422041,3.4585856,2900.9,2899.0,3.51070482]
[1769017422843,0.00441565,2901.3,2899.2,3.5072343]
[1769017423044,0.00441565,2901.3,2899.6,3.5072343]
[1769017423248,0.00441565,2901.3,2899.6,3.6798143]
[1769017423443,3.4585856,2901.1,2899.0,3.51070482]
[1769017423652,3.4585856,2901.1,2899.0,0.00347052]
[1769017423845,3.4585856,2900.7,2899.0,0.00347052]
[1769017424042,3.6311056,2900.7,2899.0,0.00347052]
[1769017425754,3.63016355,2900.5,2899.0,0.00347052]
[1769017426258,3.63016355,2900.0,2897.9,3.5072343]
[1769017426643,3.63016355,2899.6,2897.3,3.75420213]
[1769017426848,3.63016355,2899.6,2897.4,2.264]
[1769017427145,3.63016355,2900.2,2897.7,3.75420213]
[1769017427349,3.63016355,2900.2,2897.9,3.75420213]
[1769017427952,3.63016355,2900.0,2897.9,3.75420213]
[1769017429252,0.90570269,2900.4,2898.2,3.75420213]
[1769017429453,0.95197032,2900.4,2898.4,0.17265]
[1769017429654,0.95197032,2900.3,2898.4,0.17265]
[1769017429953,3.63016355,2900.2,2898.4,0.17265]
[1769017430152,3.63016355,2900.0,2897.8,0.17268]
[1769017430347,3.63016355,2899.8,2897.6,3.75420213]
[1769017430652,3.80275355,2899.4,2897.6,3.75420213]
[1769017430856,3.80275355,2899.4,2897.4,0.00326122]
[1769017431155,4.58515515,2899.3,2897.4,0.00326122]
[1769017431350,3.63016355,2899.2,2897.4,0.00326122]
[1769017431550,4.7574802,2899.1,2897.4,0.00326122]
[1769017431758,3.80278355,2898.9,2897.4,0.00326122]
[1769017431953,1.8602669,2898.8,2897.4,0.00326122]
[1769017432153,5.49043045,2898.8,2897.4,0.00326122]
[1769017432354,0.95456421,2898.7,2897.4,0.00326122]
[1769017432551,4.58472776,2898.7,2897.4,0.00326122]
[1769017432755,3.80282355,2898.3,2896.2,3.75420213]
[1769017432957,0.95467402,2898.2,2896.2,3.75420213]
[1769017433157,0.95445779,2898.1,2896.2,3.75420213]
[1769017433358,3.63016355,2898.2,2896.2,3.75420213]
[1769017433653,3.63016355,2898.0,2896.2,0.00428335]
[1769017433853,3.80285355,2897.8,2896.2,0.00428335]
[1769017434046,3.63016355,2897.6,2896.2,0.00428335]
[1769017434653,0.95409021,2897.5,2896.2,0.00428335]
[1769017434853,4.58413902,2897.4,2896.2,0.00428335]
[1769017435050,3.63016355,2897.4,2896.2,0.00428335]
[1769017435849,1.81645463,2897.9,2896.2,0.00428335]
[1769017435850,3.63016355,2897.9,2896.2,0.00428335]
[1769017436754,0.90570269,2898.2,2896.2,0.00428335]
[1769017436755,3.63016355,2898.4,2896.4,3.75420213]
[1769017436954,3.63016355,2898.4,2896.4,3.92697213]
[1769017438561,0.90570269,2898.7,2896.4,3.92697213]
[1769017438949,4.55557727,2898.7,2896.4,3.92697213]
[1769017439158,3.64987458,2898.5,2896.4,3.75420213]
[1769017439461,3.64987458,2898.3,2896.4,3.75420213]
[1769017439661,3.64987458,2898.3,2896.2,0.00428335]
[1769017440561,0.90570269,2898.8,2896.3,3.67711983]
[1769017440760,4.60279284,2898.8,2896.7,3.67711983]
[1769017440962,0.95291826,2898.7,2896.7,3.67711983]
[1769017442152,0.95291826,2898.7,2896.9,3.84985983]
[1769017442458,3.64987458,2899.3,2897.3,3.67711983]
[1769017442660,0.90570269,2899.8,2897.9,0.17268]
[1769017442860,0.90570269,2900.2,2898.4,0.17265]
[1769017443068,4.55557727,2900.4,2898.4,0.00431455]
[1769017443267,3.64987458,2900.2,2898.4,0.00431455]
[1769017443566,4.55557727,2900.0,2898.4,0.00431455]
[1769017443866,3.64987458,2899.8,2898.4,0.00431455]
[1769017444065,3.65426123,2899.8,2898.4,0.00431455]
[1769017444263,4.60346751,2899.7,2898.4,0.00431455]
[1769017444469,3.64987458,2899.5,2897.3,0.17271]
[1769017444654,3.64987458,2899.3,2897.3,0.17271]
[1769017444957,1.85929562,2899.2,2897.3,3.84982983]
[1769017445267,0.90570269,2899.5,2897.7,0.17269]
[1769017445467,0.95420005,2899.4,2897.7,0.17605366]
[1769017445665,0.95420005,2899.3,2897.7,0.17605366]
[1769017445868,0.90570269,2899.6,2897.7,0.17605366]
[1769017446067,1.85985861,2899.6,2897.7,0.17605366]
[1769017446767,2.03243861,2899.6,2897.7,0.00336366]
[1769017446963,4.55557727,2899.4,2897.7,0.00336366]
[1769017447267,5.50973319,2899.3,2897.7,0.00336366]
[1769017447463,0.95415592,2899.2,2897.7,0.00336366]
[1769017448071,0.90570269,2898.9,2896.7,0.17275]
[1769017448266,3.64987458,2898.8,2896.7,0.17275]
[1769017448470,0.90570269,2899.0,2896.2,2.252]
[1769017448667,1.21751703,2899.1,2897.3,3.67711983]
[1769017448668,0.95532927,2898.9,2897.3,3.67711983]
[1769017448970,4.55557727,2899.4,2897.4,3.84982983]
[1769017449171,0.95520168,2899.3,2897.4,3.85265993]
[1769017449367,0.95520168,2899.2,2897.4,3.85265993]
[1769017449568,0.90570269,2899.6,2897.7,3.84980983]
[1769017450066,0.90570269,2899.5,2897.7,3.67711983]
[1769017450269,0.95541778,2899.5,2898.1,3.67711983]
[1769017450472,0.00438665,2899.8,2898.1,3.84978983]
[1769017450673,0.95565341,2899.7,2897.5,5.79311983]
[1769017450973,0.95565341,2899.6,2897.5,5.79311983]
[1769017451171,3.64987458,2899.7,2897.5,5.79311983]
[1769017451369,0.95605806,2899.6,2897.5,5.79311983]
[1769017451672,4.55557727,2899.7,2897.5,5.96581983]
[1769017451971,1.86180119,2899.6,2897.5,5.96581983]
[1769017452469,0.9560985,2899.5,2897.5,5.96581983]
[1769017452766,4.72816727,2899.4,2897.4,0.0028301]
[1769017452970,4.60597308,2899.3,2897.4,0.0028301]
[1769017453273,5.51167577,2899.2,2897.4,0.0028301]
[1769017453469,0.9560985,2899.1,2897.4,0.0028301]
[1769017453971,0.9560985,2899.1,2897.4,3.67994993]
[1769017454268,0.90570269,2899.2,2897.4,3.67994993]
[1769017454269,0.95790754,2899.0,2897.6,3.84981983]
[1769017454469,0.90570269,2899.4,2897.7,3.67711983]
[1769017454968,0.90570269,2899.3,2897.8,0.17268]
[1769017455167,0.95788784,2899.2,2897.9,0.17268]
[1769017455369,0.90570269,2899.4,2897.9,0.17268]
[1769017456458,0.90570269,2899.1,2897.4,0.0028301]
[1769017456660,4.61367529,2899.0,2897.4,0.0028301]
[1769017456859,0.95823408,2898.9,2897.4,0.1755401]
[1769017457270,0.95823408,2898.9,2897.5,0.1727]
[1769017457470,0.95823408,2898.9,2897.6,0.1727]
[1769017458169,0.95823408,2898.9,2897.8,0.17268]
[1769017458370,0.90570269,2899.1,2897.8,0.17268]
[1769017458874,1.864593,2899.1,2897.8,0.17268]
[1769017459171,0.95889031,2899.0,2897.9,0.17268]
[1769017459475,0.90570269,2899.4,2898.1,0.17266]
[1769017459669,0.95896238,2899.3,2898.1,0.17266]
[1769017459971,0.95896238,2899.2,2898.1,0.17266]
[1769017460174,0.90570269,2899.5,2898.1,0.17266]
[1769017460473,0.90570269,2899.4,2898.1,0.17266]
[1769017461077,4.66717393,2899.3,2897.7,0.17269]
[1769017461273,4.61367529,2899.0,2897.4,0.0028301]
[1769017461480,0.95920133,2898.9,2897.4,0.0028301]
[1769017461972,0.90570269,2898.4,2897.4,0.0028301]
[1769017462166,1.86490402,2898.4,2897.4,0.0028301]
[1769017462363,3.7079726,2898.1,2896.5,0.17276]
[1769017462575,0.95920133,2898.0,2896.6,0.17276]
[1769017463275,0.95920133,2898.0,2896.6,3.79664785]
[1769017463471,0.90570269,2898.7,2897.3,0.17271]
[1769017464381,0.90570269,2898.6,2897.3,0.17271]
[1769017465274,0.90570269,2898.7,2897.4,0.17271]
[1769017465474,0.90570269,2898.8,2897.5,0.1727]
[1769017465679,0.90570269,2899.1,2897.1,3.79369278]
[1769017465873,0.90570269,2899.1,2897.7,0.17269]
[1769017466469,0.90570269,2899.0,2897.1,0.17273]
[1769017466676,0.90570269,2898.8,2897.1,0.17273]
[1769017467079,0.90570269,2898.7,2897.1,0.17273]
[1769017467782,1.81645463,2899.4,2897.8,3.96637278]
[1769017468081,0.00438665,2899.8,2897.9,0.17268]
[1769017468375,0.00438665,2899.8,2898.1,0.17267]
[1769017468973,3.71235925,2899.8,2898.1,0.17267]
[1769017470474,0.10792998,2899.7,2898.1,0.17267]
[1769017470675,0.00438665,2899.8,2898.4,0.17265]
[1769017471081,0.00438665,2899.8,2898.6,0.17263]
[1769017471277,0.00438665,2899.8,2898.7,0.17263]
[1769017471586,0.00438665,2899.8,2898.7,0.17562598]
[1769017472085,3.71235925,2899.8,2898.7,0.00299598]
[1769017473282,0.10792555,2899.7,2898.7,0.00299598]
[1769017473483,3.71235925,2899.8,2898.2,0.17266]
[1769017473685,3.7079726,2899.6,2898.2,0.17266]
[1769017474586,3.7079726,2899.6,2898.2,0.17556703]
[1769017475485,0.94821052,2899.5,2898.2,0.17556703]
[1769017475686,0.94821052,2899.4,2898.2,0.00290703]
[1769017475886,3.7079726,2899.6,2898.2,0.00290703]
[1769017476081,0.94821108,2899.5,2898.2,0.00290703]
[1769017476278,0.00438665,2899.8,2898.2,0.00290703]
[1769017476482,0.94808081,2899.7,2898.2,0.00290703]
[1769017476787,0.9480014,2899.6,2898.3,0.17266]
[1769017476985,0.00438665,2899.8,2898.3,0.17266]
[1769017477184,0.94801672,2899.7,2898.3,0.17266]
[1769017477385,0.00438665,2899.8,2898.3,0.17266]
[1769017477583,0.94791324,2899.7,2898.3,0.17266]
[1769017477881,0.94791324,2899.6,2898.3,0.17266]
[1769017478091,0.00438665,2899.8,2898.3,0.17266]
[1769017478285,0.94790753,2899.7,2898.3,0.17266]
[1769017478588,0.00438665,2899.8,2898.3,0.17266]
[1769017478787,4.65591069,2899.7,2898.2,0.00290703]
[1769017478988,0.94793809,2899.6,2898.2,0.00290703]
[1769017479290,3.7079726,2899.7,2898.2,0.00290703]
[1769017479484,0.00438665,2899.8,2898.2,0.00290703]
[1769017479686,0.94787918,2899.7,2898.2,0.00290703]
[1769017479882,0.94787918,2899.6,2898.2,0.00290703]
[1769017480078,0.00438665,2899.8,2898.2,3.96925981]
[1769017480281,0.94786118,2899.7,2898.2,3.96925981]
[1769017480481,0.00438665,2899.8,2898.2,3.96925981]
[1769017480679,4.65574351,2899.7,2898.2,0.00290703]
[1769017480990,0.94777091,2899.6,2898.2,0.00290703]
[1769017483693,3.81590972,2899.5,2898.2,0.00290703]
[1769017483994,3.7079726,2899.1,2897.1,0.17273]
[1769017484197,0.94777091,2899.0,2897.5,0.1727]
[1769017484495,1.81645463,2899.6,2897.7,0.17269]
[1769017484693,0.10793589,2899.5,2897.7,0.17269]
[1769017484887,0.10793589,2899.5,2897.7,0.00447611]
[1769017484888,0.95065656,2899.4,2897.7,0.00447611]
[1769017485191,0.95065656,2899.4,2898.2,0.17266]
[1769017486090,0.00438665,2899.8,2898.2,0.17266]
[1769017486282,0.95052496,2899.7,2898.3,0.17266]
[1769017486480,0.95052496,2899.6,2898.4,0.17265]
[1769017486690,0.95052496,2899.5,2898.4,0.17265]
[1769017486889,0.00438665,2899.8,2898.4,0.17265]
[1769017487089,0.95051025,2899.7,2897.8,3.61189501]
[1769017487289,0.95051025,2899.6,2897.8,3.61189501]
[1769017487588,0.00438665,2899.8,2898.4,0.17265]
[1769017487788,0.95051029,2899.7,2898.4,0.17265]
[1769017488089,0.00438665,2899.8,2898.4,0.17265]
[1769017488289,0.95047254,2899.7,2898.0,3.61189501]
[1769017488595,0.00438665,2899.8,2898.0,3.61189501]
[1769017488890,0.95047828,2899.7,2898.0,3.61189501]
[1769017489092,0.00438665,2899.8,2898.0,3.61189501]
[1769017489287,0.95043489,2899.7,2898.0,3.61189501]
[1769017489494,0.00438665,2899.8,2898.6,0.17264]
[1769017489793,0.95044075,2899.7,2898.6,0.17264]
[1769017490089,0.00438665,2899.8,2899.0,0.17261]
[1769017490799,1.81645463,2900.9,2899.0,3.61189501]
[1769017490992,0.95008722,2900.8,2899.0,3.61189501]
[1769017491295,3.50549945,2901.0,2899.2,3.61189501]
[1769017491496,0.94938683,2900.9,2899.2,3.61189501]
[1769017491794,0.94941169,2900.8,2899.1,0.17261]
[1769017491994,0.94941169,2900.7,2899.1,0.17261]
[1769017492195,0.94941169,2900.7,2898.9,3.61189501]
[1769017492196,0.00320183,2900.9,2899.3,0.1726]
[1769017492398,0.94937919,2900.8,2899.3,0.1726]
[1769017492696,0.00320183,2900.9,2899.4,0.17259]
[1769017492997,0.94933547,2900.8,2899.4,0.17259]
[1769017493294,3.50549945,2900.6,2898.9,3.61189501]
[1769017493689,3.50549945,2900.6,2899.1,0.17261]
[1769017495496,0.94996681,2900.5,2899.1,0.17261]
[1769017495699,3.50549945,2900.6,2899.1,0.17261]
[1769017495885,0.94998544,2900.5,2899.1,0.17261]
[1769017496087,3.50549945,2900.3,2898.8,2.223]
[1769017496295,0.95014643,2900.2,2898.8,2.223]
[1769017496599,0.9501474,2900.1,2898.8,2.223]
[1769017496787,3.50549945,2900.3,2898.8,2.223]
[1769017496993,0.9501759,2900.2,2898.8,2.223]
[1769017497192,0.9501759,2900.1,2898.8,2.223]
[1769017497395,0.9501759,2900.0,2898.8,2.223]
[1769017497599,3.50549945,2900.3,2898.7,0.17263]
[1769017497792,3.50549945,2900.1,2898.7,0.17263]
[1769017498099,0.95063873,2900.0,2898.7,0.17263]
[1769017498301,4.45613818,2900.0,2898.7,0.17263]
[1769017498500,0.95063873,2899.9,2898.7,0.17263]
[1769017499393,3.65111885,2899.8,2898.0,0.17267]
[1769017499600,0.95063873,2899.7,2898.0,0.17267]
[1769017499800,4.60175758,2899.7,2898.0,0.17267]
[1769017499995,4.60175758,2899.6,2898.0,0.17267]
[1769017500308,3.65111885,2899.4,2897.7,0.00447611]
[1769017500508,3.65111885,2898.9,2897.7,0.00447611]
[1769017500798,3.65111885,2898.7,2896.8,3.65139641]
[1769017501003,4.60175758,2898.6,2896.8,3.65139641]
[1769017501195,3.65111885,2898.4,2896.3,2.223]
[1769017501391,3.65111885,2898.2,2896.3,2.223]
[1769017501596,3.65111885,2898.0,2896.1,0.17279]
[1769017501803,3.65111885,2897.8,2896.1,0.00329351]
[1769017502009,1.23131629,2897.9,2896.1,0.00329351]
[1769017502010,3.65111885,2897.6,2896.1,0.00329351]
[1769017502200,3.65111885,2897.4,2896.1,0.00329351]
[1769017502796,5.06100114,2897.9,2896.1,0.00329351]
[1769017503106,0.94865185,2897.8,2896.1,0.00329351]
[1769017503305,3.65111885,2897.6,2896.1,0.00329351]
[1769017503601,3.65111885,2897.4,2896.1,0.00329351]
[1769017503802,0.17269,2897.7,2896.1,0.00329351]
[1769017504301,3.65111885,2897.5,2896.1,0.00329351]
[1769017505605,3.82380885,2897.7,2896.1,0.00329351]
[1769017505810,3.65111885,2897.2,2894.8,3.65150641]
[1769017506001,3.82383885,2897.2,2894.9,2.219]
[1769017506697,3.82383885,2897.2,2895.0,0.17285]
[1769017506897,3.82383885,2897.2,2895.0,3.65544392]
[1769017507909,3.82385885,2897.0,2895.0,0.00394751]
[1769017509007,3.65111885,2896.6,2895.0,0.00394751]
[1769017509215,3.65111885,2897.2,2895.0,3.48259392]
[1769017509802,3.65111885,2898.0,2895.6,3.65145641]
[1769017510206,3.65111885,2898.0,2895.6,3.47864641]
[1769017510810,3.65111885,2897.7,2895.2,0.17284]
[1769017511018,3.82383885,2897.3,2895.2,0.17284]
[1769017511400,0.17272,2897.2,2895.2,0.17284]
[1769017511611,3.65111885,2896.9,2895.0,0.00394751]
[1769017512210,3.82386885,2896.7,2895.0,0.00394751]
[1769017512401,0.17271,2897.4,2895.0,0.00394751]
[1769017512718,3.65111885,2897.0,2895.0,0.00394751]
[1769017512899,3.82385885,2897.0,2895.0,0.00394751]
[1769017513099,3.65111885,2896.8,2895.0,0.00394751]
[1769017513305,3.82386885,2896.8,2895.0,0.00394751]
[1769017514107,3.65111885,2896.6,2895.0,0.00394751]
[1769017514314,3.82388885,2896.4,2895.0,0.00394751]
[1769017514618,3.65111885,2896.0,2894.0,0.17291]
[1769017514801,1.81645463,2897.3,2893.3,3.47864641]
[1769017514802,0.17285,2895.2,2893.3,3.47864641]
[1769017515006,0.17285,2895.1,2893.0,0.17297]
[1769017515210,3.82396885,2895.1,2893.0,0.17297]
[1769017515404,3.82392885,2895.8,2893.1,3.65161641]
[1769017515615,3.82695107,2895.8,2893.1,3.6550268]
[1769017515814,3.7267232,2895.4,2893.1,3.6550268]
[1769017516616,3.7267232,2895.0,2893.1,0.00341039]
[1769017516810,3.7267232,2894.8,2893.1,0.00341039]
[1769017517608,3.7267232,2895.5,2893.1,3.60342427]
[1769017518418,3.7267232,2895.2,2893.1,0.00341039]
[1769017518715,3.7267232,2895.0,2893.1,0.00341039]
[1769017518920,3.7267232,2894.6,2893.1,0.00341039]
[1769017519413,1.69587704,2895.6,2893.1,0.00341039]
[1769017519414,3.7267232,2895.1,2893.1,0.00341039]
[1769017519614,3.8995732,2895.1,2893.1,0.00341039]
[1769017520812,3.8995732,2895.1,2893.1,3.60342427]
[1769017520813,3.7267232,2895.1,2893.1,3.60342427]
[1769017521118,4.16917075,2895.6,2893.1,3.60342427]
[1769017521307,4.16917075,2895.6,2893.4,0.17294]
[1769017521715,3.8995432,2895.6,2893.4,0.17294]
[1769017521913,3.8995432,2895.6,2893.5,0.17294]
[1769017522316,3.7267232,2895.4,2893.1,3.60342427]
[1769017522516,3.7267232,2895.1,2893.1,3.60342427]
[1769017523119,3.7267232,2895.1,2893.3,0.17295]
[1769017523314,3.7267232,2895.1,2893.3,3.77296388]
[1769017524019,3.8995332,2895.7,2893.3,3.77296388]
[1769017524220,3.7267232,2895.7,2894.0,0.17291]
[1769017524712,0.00302222,2895.8,2893.9,3.60001388]
[1769017524916,0.00302222,2895.8,2894.8,0.17286]
[1769017525521,0.00302222,2895.8,2894.4,3.60001388]
[1769017526115,0.00302222,2895.8,2894.7,0.17287]
[1769017526321,0.00302222,2895.8,2894.0,0.17291]
[1769017526824,0.00302222,2895.8,2894.1,3.60001388]
[1769017527217,0.00302222,2895.8,2894.6,0.17288]
[1769017527516,0.00302222,2895.8,2894.7,0.17287]
[1769017528317,0.00302222,2895.8,2894.4,3.60001388]
[1769017528621,0.00302222,2895.8,2894.1,0.17291]
[1769017529022,0.00302222,2895.8,2894.3,5.02266781]
[1769017529222,0.00302222,2895.8,2894.4,3.60001388]
[1769017529618,0.00302222,2895.8,2893.8,5.19559781]
[1769017529920,0.00302222,2895.8,2894.4,3.60001388]
[1769017530114,0.00302222,2895.8,2894.7,0.17287]
[1769017530316,3.7267232,2897.0,2895.1,3.60001388]
[1769017530519,3.7267232,2897.6,2895.4,3.60001388]
[1769017530719,3.7267232,2897.6,2895.9,0.1728]
[1769017531023,3.7267232,2897.8,2895.7,2.216]
[1769017531321,0.00309381,2897.8,2896.2,0.17278]
[1769017531519,0.00309381,2897.8,2896.2,3.77279388]
[1769017533722,3.72981701,2897.8,2895.9,2.216]
[1769017534424,3.72981701,2897.8,2896.0,0.17279]
[1769017534626,0.00309381,2897.8,2896.0,3.77280388]
[1769017534922,0.00309381,2897.8,2896.3,5.02266781]
[1769017535125,0.00309381,2897.8,2896.4,3.60001388]
[1769017535423,0.00309381,2897.8,2896.5,3.77277388]
[1769017535722,3.7267232,2898.8,2896.7,3.60001388]
[1769017535923,0.96670389,2898.7,2896.7,3.60001388]
[1769017536124,0.96665264,2898.6,2896.7,3.60001388]
[1769017536322,3.7267232,2898.8,2896.7,3.60001388]
[1769017536519,3.7267232,2898.4,2896.1,3.60001388]
[1769017536729,3.73085637,2898.4,2896.1,3.60001388]
[1769017536927,3.8993832,2898.2,2896.1,3.60001388]
[1769017537131,0.96603814,2898.1,2896.1,3.60001388]
[1769017537316,0.96603814,2898.1,2896.0,2.217]
[1769017537317,0.17268,2897.9,2895.7,0.00304101]
[1769017537521,0.91613329,2898.4,2895.7,0.00304101]
[1769017537522,3.7267232,2897.5,2895.7,0.00304101]
[1769017537925,3.7267232,2898.0,2895.9,5.02266781]
[1769017538127,3.7267232,2898.0,2896.1,3.77279388]
[1769017538429,3.7267232,2898.6,2896.4,5.02266781]
[1769017538622,3.7267232,2898.6,2896.7,3.60001388]
[1769017538823,3.7267232,2898.6,2896.7,3.77276388]
[1769017539025,3.7267232,2898.6,2896.8,0.17275]
[1769017539219,3.7267232,2898.6,2896.7,3.60001388]
[1769017539425,3.7267232,2898.6,2896.5,2.099]
[1769017539625,3.90350637,2898.4,2896.2,5.99079388]
[1769017540024,3.7267232,2898.2,2895.7,3.60305489]
[1769017540231,3.7267232,2897.8,2895.7,3.60305489]
[1769017540529,3.7267232,2897.8,2895.7,3.77586489]
[1769017541122,3.7267232,2897.8,2896.0,0.17279]
[1769017541821,3.73085637,2898.4,2896.6,0.17275]
[1769017542028,3.73085637,2898.4,2896.7,0.17275]
[1769017542227,0.00413317,2898.4,2896.6,3.60001388]
[1769017543629,0.00413317,2898.4,2896.9,0.17274]
[1769017544131,0.00413317,2898.4,2896.6,3.60001388]
[1769017544330,0.00413317,2898.4,2896.7,0.17275]
[1769017544531,0.00413317,2898.4,2897.1,3.77273388]
[1769017544732,3.7267232,2899.4,2897.3,3.77272388]
[1769017545127,3.7267232,2899.4,2897.3,0.17271]
[1769017545430,3.8993132,2899.4,2897.3,0.17271]
[1769017545732,3.7267232,2899.4,2897.5,0.1727]
[1769017545928,3.90298697,2899.4,2897.0,0.17273]
[1769017546328,3.74839797,2899.2,2897.0,0.17273]
[1769017547230,3.74839797,2899.2,2897.1,0.17273]
[1769017548323,3.74839797,2899.2,2897.2,0.17272]
[1769017548531,3.74839797,2899.2,2897.3,0.17271]
[1769017549423,3.74839797,2899.2,2896.9,3.44718621]
[1769017549424,3.92099797,2899.2,2896.9,3.44718621]
[1769017549623,3.74839797,2899.0,2896.9,3.44718621]
[1769017549925,3.74839797,2898.2,2896.0,0.17279]
[1769017550331,3.74839797,2898.2,2896.1,0.17279]
[1769017550521,3.74839797,2898.2,2896.2,0.17278]
[1769017551325,3.74839797,2898.2,2896.3,3.44718621]
[1769017551535,3.74839797,2898.2,2896.5,0.17276]
[1769017552728,3.74839797,2898.8,2896.7,0.17275]
[1769017552924,0.97103614,2898.7,2896.7,0.17275]
[1769017553129,3.74839797,2898.8,2896.7,0.17275]
[1769017553332,0.97105142,2898.7,2896.7,0.17275]
[1769017553630,3.74839797,2898.5,2896.7,0.17275]
[1769017553933,3.74839797,2898.3,2896.2,1.42265393]
[1769017554136,3.74839797,2898.1,2896.2,0.17278]
[1769017554435,4.72152456,2898.0,2896.2,0.17278]
[1769017554739,3.74839797,2898.0,2895.7,3.63569494]
[1769017554936,3.74839797,2897.8,2895.8,0.1728]
[1769017555336,3.74839797,2897.8,2895.9,0.1728]
[1769017558032,0.97438816,2897.7,2895.9,0.1728]
[1769017558232,3.74839797,2897.5,2895.9,0.1728]
[1769017558942,3.5032409,2897.1,2895.7,0.00304101]
[1769017559136,3.5032409,2896.9,2895.7,0.00304101]
[1769017559336,3.5032409,2896.7,2894.7,1.42265393]
[1769017559541,0.97610031,2896.8,2894.6,2.38088]
[1769017559542,3.5032409,2896.5,2894.6,2.38088]
[1769017559731,4.47961367,2896.4,2894.6,0.17288]
[1769017559933,3.5032409,2896.2,2894.1,0.2699692]
[1769017560135,3.5032409,2896.0,2894.1,0.2699692]